[Event "Late Titled Tuesday Blitz February 8 2022"]
[White "Krstulovic, Alex"]
[Black "Golubenko, Valentina"]
[WhiteFideId "760056"]
[BlackFideId "4501993"]
[WhiteElo "2193"]
[BlackElo "2164"]
[Result "0-1"]
[Round "03"]
[TimeControl "180+1"]
[Date "2022.02.09"]
[WhiteClock "0:00:07"]
[BlackClock "0:00:08"]

1. e4 {[%clk 0:02:58]}  e6 {[%clk 0:02:55]} 2. d4 {[%clk 0:02:56]}  d5 {[%clk 0:02:55]} 3. e5 {[%clk 0:02:57]}  c5 {[%clk 0:02:55]} 4. c3 {[%clk 0:02:57]}  Nc6 {[%clk 0:02:55]} 5. Nf3 {[%clk 0:02:57]}  Nge7 {[%clk 0:02:54]} 6. Na3 {[%clk 0:02:56]}  Nf5 {[%clk 0:02:53]} 7. Nc2 {[%clk 0:02:55]}  Be7 {[%clk 0:02:53]} 8. g4 {[%clk 0:02:52]}  Nh4 {[%clk 0:02:51]} 9. Nxh4 {[%clk 0:02:52]}  Bxh4 {[%clk 0:02:51]} 10. Bd3 {[%clk 0:02:45]}  c4 {[%clk 0:02:47]} 11. Be2 {[%clk 0:02:43]}  f6 {[%clk 0:02:46]} 12. exf6 {[%clk 0:02:39]}  Qxf6 {[%clk 0:02:43]} 13. O-O {[%clk 0:02:38]}  O-O {[%clk 0:02:38]} 14. Be3 {[%clk 0:02:37]}  Qg6 {[%clk 0:02:25]} 15. f4 {[%clk 0:02:31]}  Be7 {[%clk 0:02:14]} 16. Kh1 {[%clk 0:02:28]}  Bd6 {[%clk 0:02:06]} 17. Ne1 {[%clk 0:02:23]}  Qe4+ {[%clk 0:01:59]} 18. Ng2 {[%clk 0:02:23]}  b5 {[%clk 0:01:52]} 19. Bf3 {[%clk 0:02:21]}  Qg6 {[%clk 0:01:51]} 20. f5 {[%clk 0:02:20]}  Qf7 {[%clk 0:01:45]} 21. Bf4 {[%clk 0:02:07]}  Be7 {[%clk 0:01:39]} 22. Ne3 {[%clk 0:02:02]}  Kh8 {[%clk 0:01:34]} 23. Bg2 {[%clk 0:01:56]}  Rd8 {[%clk 0:01:26]} 24. fxe6 {[%clk 0:01:52]}  Qxe6 {[%clk 0:01:23]} 25. Qf3 {[%clk 0:01:48]}  Bb7 {[%clk 0:01:07]} 26. Nf5 {[%clk 0:01:38]}  Bf8 {[%clk 0:00:55]} 27. Rae1 {[%clk 0:01:37]}  Qf7 {[%clk 0:00:52]} 28. Bg5 {[%clk 0:01:00]}  Rd7 {[%clk 0:00:48]} 29. Qh3 {[%clk 0:00:43]}  Qg6 {[%clk 0:00:42]} 30. Qh4 {[%clk 0:00:37]}  b4 {[%clk 0:00:30]} 31. Rf2 {[%clk 0:00:31]}  bxc3 {[%clk 0:00:18]} 32. bxc3 {[%clk 0:00:32]}  Ba3 {[%clk 0:00:16]} 33. Ref1 {[%clk 0:00:32]}  Re8 {[%clk 0:00:16]} 34. Ne7 {[%clk 0:00:22]}  Bxe7 {[%clk 0:00:13]} 35. Bxe7 {[%clk 0:00:21]}  h6 {[%clk 0:00:13]} 36. Rf8+ {[%clk 0:00:18]}  Rxf8 {[%clk 0:00:13]} 37. Rxf8+ {[%clk 0:00:19]}  Kh7 {[%clk 0:00:13]} 38. Bc5 {[%clk 0:00:17]}  Rf7 {[%clk 0:00:12]} 39. Rxf7 {[%clk 0:00:17]}  Qxf7 {[%clk 0:00:13]} 40. Qg3 {[%clk 0:00:15]}  Qg6 {[%clk 0:00:13]} 41. h4 {[%clk 0:00:15]}  Qb1+ {[%clk 0:00:12]} 42. Kh2 {[%clk 0:00:15]}  Qg6 {[%clk 0:00:12]} 43. Bf3 {[%clk 0:00:13]}  Nd8 {[%clk 0:00:10]} 44. Qc7 {[%clk 0:00:12]}  Ne6 {[%clk 0:00:09]} 45. Qxb7 {[%clk 0:00:12]}  Qf6 {[%clk 0:00:10]} 46. Qxd5 {[%clk 0:00:09]}  Qxh4+ {[%clk 0:00:10]} 47. Kg1 {[%clk 0:00:09]}  Qg3+ {[%clk 0:00:08]} 48. Kf1 {[%clk 0:00:08]}  Qh3+ {[%clk 0:00:08]} 49. Ke2 {[%clk 0:00:07]}  Nf4+ {[%clk 0:00:07]} 50. Ke3 {[%clk 0:00:07]}  Nxd5+ {[%clk 0:00:08]} 0-1


[Site "https://www.chess.com"]

[Event "Late Titled Tuesday Blitz February 8 2022"]
[White "Laith, Kasib"]
[Black "Kopczynski, Michal"]
[WhiteFideId "4801059"]
[BlackFideId "1124200"]
[WhiteElo "1982"]
[BlackElo "2235"]
[Result "0-1"]
[Round "03"]
[TimeControl "180+1"]
[Date "2022.02.09"]
[WhiteClock "0:00:26"]
[BlackClock "0:00:16"]

1. Nf3 {[%clk 0:03:00]}  d6 {[%clk 0:02:59]} 2. g3 {[%clk 0:03:00]}  e5 {[%clk 0:02:59]} 3. d3 {[%clk 0:02:58]}  f5 {[%clk 0:03:00]} 4. Bg2 {[%clk 0:02:55]}  Nf6 {[%clk 0:03:01]} 5. O-O {[%clk 0:02:53]}  g6 {[%clk 0:03:02]} 6. Nbd2 {[%clk 0:02:52]}  Bg7 {[%clk 0:03:03]} 7. e4 {[%clk 0:02:52]}  O-O {[%clk 0:03:04]} 8. c3 {[%clk 0:02:51]}  Nc6 {[%clk 0:03:05]} 9. b4 {[%clk 0:02:48]}  fxe4 {[%clk 0:03:02]} 10. Nxe4 {[%clk 0:02:46]}  Nxe4 {[%clk 0:03:01]} 11. dxe4 {[%clk 0:02:47]}  Be6 {[%clk 0:03:00]} 12. Ng5 {[%clk 0:02:46]}  Qd7 {[%clk 0:02:56]} 13. Nxe6 {[%clk 0:02:25]}  Qxe6 {[%clk 0:02:57]} 14. Qb3 {[%clk 0:02:17]}  Kf7 {[%clk 0:02:49]} 15. f4 {[%clk 0:02:13]}  Ke7 {[%clk 0:02:45]} 16. f5 {[%clk 0:02:06]}  Qxb3 {[%clk 0:02:37]} 17. axb3 {[%clk 0:02:05]}  Bf6 {[%clk 0:02:25]} 18. Bh6 {[%clk 0:02:01]}  Rf7 {[%clk 0:02:23]} 19. h4 {[%clk 0:02:01]}  a5 {[%clk 0:02:12]} 20. b5 {[%clk 0:02:00]}  Nb8 {[%clk 0:02:03]} 21. Rf2 {[%clk 0:02:00]}  Nd7 {[%clk 0:02:02]} 22. Bh3 {[%clk 0:01:54]}  Nc5 {[%clk 0:01:57]} 23. fxg6 {[%clk 0:01:53]}  hxg6 {[%clk 0:01:57]} 24. Bg2 {[%clk 0:01:48]}  Nxb3 {[%clk 0:01:56]} 25. Raf1 {[%clk 0:01:48]}  a4 {[%clk 0:01:40]} 26. g4 {[%clk 0:01:47]}  a3 {[%clk 0:01:36]} 27. g5 {[%clk 0:01:47]}  a2 {[%clk 0:01:36]} 28. gxf6+ {[%clk 0:01:39]}  Ke8 {[%clk 0:01:25]} 29. Rb2 {[%clk 0:01:25]}  a1=Q {[%clk 0:01:22]} 30. Rxa1 {[%clk 0:01:23]}  Rxa1+ {[%clk 0:01:23]} 31. Kh2 {[%clk 0:01:22]}  Nc5 {[%clk 0:01:19]} 32. Rf2 {[%clk 0:01:19]}  Re1 {[%clk 0:01:12]} 33. Bd2 {[%clk 0:01:12]}  Rxe4 {[%clk 0:01:11]} 34. Bxe4 {[%clk 0:01:12]}  Nxe4 {[%clk 0:01:12]} 35. Rg2 {[%clk 0:01:11]}  Nxd2 {[%clk 0:01:12]} 36. Rxd2 {[%clk 0:01:11]}  Rxf6 {[%clk 0:01:12]} 37. Ra2 {[%clk 0:01:04]}  Kd7 {[%clk 0:01:04]} 38. Ra7 {[%clk 0:01:01]}  b6 {[%clk 0:01:04]} 39. Kg3 {[%clk 0:00:59]}  Rf4 {[%clk 0:01:01]} 40. Ra8 {[%clk 0:00:57]}  Rc4 {[%clk 0:00:59]} 41. Rg8 {[%clk 0:00:54]}  Rxc3+ {[%clk 0:00:58]} 42. Kg4 {[%clk 0:00:55]}  Ke6 {[%clk 0:00:51]} 43. Rxg6+ {[%clk 0:00:54]}  Kf7 {[%clk 0:00:52]} 44. Rh6 {[%clk 0:00:53]}  Rc5 {[%clk 0:00:40]} 45. Rh7+ {[%clk 0:00:52]}  Kg6 {[%clk 0:00:39]} 46. Rd7 {[%clk 0:00:51]}  Rc4+ {[%clk 0:00:35]} 47. Kg3 {[%clk 0:00:50]}  e4 {[%clk 0:00:33]} 48. Re7 {[%clk 0:00:43]}  d5 {[%clk 0:00:32]} 49. Kf4 {[%clk 0:00:38]}  Kf6 {[%clk 0:00:24]} 50. Rd7 {[%clk 0:00:34]}  Ke6 {[%clk 0:00:24]} 51. Rh7 {[%clk 0:00:32]}  Rc3 {[%clk 0:00:20]} 52. Rh6+ {[%clk 0:00:31]}  Kd7 {[%clk 0:00:19]} 53. Rh7+ {[%clk 0:00:31]}  Kd6 {[%clk 0:00:19]} 54. Rh6+ {[%clk 0:00:31]}  Kc5 {[%clk 0:00:19]} 55. Rc6+ {[%clk 0:00:31]}  Kd4 {[%clk 0:00:19]} 56. Rxc3 {[%clk 0:00:26]}  Kxc3 {[%clk 0:00:20]} 57. h5 {[%clk 0:00:26]}  Kd2 {[%clk 0:00:19]} 58. h6 {[%clk 0:00:26]}  e3 {[%clk 0:00:20]} 59. h7 {[%clk 0:00:27]}  e2 {[%clk 0:00:20]} 60. h8=Q {[%clk 0:00:27]}  e1=Q {[%clk 0:00:20]} 61. Qd4+ {[%clk 0:00:28]}  Kc2 {[%clk 0:00:18]} 62. Qxd5 {[%clk 0:00:26]}  Qd2+ {[%clk 0:00:14]} 63. Qxd2+ {[%clk 0:00:23]}  Kxd2 {[%clk 0:00:15]} 64. Ke5 {[%clk 0:00:24]}  Kc3 {[%clk 0:00:15]} 65. Kd5 {[%clk 0:00:25]}  Kb4 {[%clk 0:00:15]} 66. Kc6 {[%clk 0:00:25]}  Kc4 {[%clk 0:00:16]} 67. Kxc7 {[%clk 0:00:26]}  Kxb5 {[%clk 0:00:16]} 68. Kd6 {[%clk 0:00:26]}  Kc4 {[%clk 0:00:16]} 69. Kc6 {[%clk 0:00:26]}  b5 {[%clk 0:00:16]} 0-1


[Site "https://www.chess.com"]

[Event "Late Titled Tuesday Blitz February 8 2022"]
[White "Li, Ben"]
[Black "Sviridov, Valery"]
[WhiteFideId "2089980"]
[BlackFideId "4120680"]
[WhiteElo "2267"]
[BlackElo "2454"]
[Result "0-1"]
[Round "03"]
[TimeControl "180+1"]
[Date "2022.02.08"]
[WhiteClock "0:00:11"]
[BlackClock "0:00:19"]

1. d4 {[%clk 0:03:00]}  g6 {[%clk 0:02:57]} 2. e4 {[%clk 0:03:00]}  Bg7 {[%clk 0:02:57]} 3. c4 {[%clk 0:03:01]}  d6 {[%clk 0:02:58]} 4. Nc3 {[%clk 0:03:01]}  e5 {[%clk 0:02:58]} 5. d5 {[%clk 0:03:01]}  f5 {[%clk 0:02:58]} 6. exf5 {[%clk 0:03:02]}  gxf5 {[%clk 0:02:59]} 7. Qh5+ {[%clk 0:03:02]}  Kf8 {[%clk 0:02:59]} 8. Bd3 {[%clk 0:03:02]}  Nf6 {[%clk 0:02:59]} 9. Qh4 {[%clk 0:03:01]}  Qe7 {[%clk 0:02:57]} 10. Qg3 {[%clk 0:02:38]}  Na6 {[%clk 0:02:53]} 11. Nge2 {[%clk 0:02:37]}  f4 {[%clk 0:02:51]} 12. Qg5 {[%clk 0:02:19]}  Nxd5 {[%clk 0:02:30]} 13. Qxe7+ {[%clk 0:02:15]}  Nxe7 {[%clk 0:02:31]} 14. g3 {[%clk 0:02:10]}  Nc5 {[%clk 0:02:27]} 15. Bc2 {[%clk 0:02:09]}  f3 {[%clk 0:02:13]} 16. Ng1 {[%clk 0:02:07]}  Nc6 {[%clk 0:02:12]} 17. Nxf3 {[%clk 0:02:01]}  Bg4 {[%clk 0:02:12]} 18. Nh4 {[%clk 0:01:49]}  Nd4 {[%clk 0:02:11]} 19. Bb1 {[%clk 0:01:44]}  e4 {[%clk 0:01:54]} 20. Be3 {[%clk 0:01:36]}  Re8 {[%clk 0:01:53]} 21. O-O {[%clk 0:01:32]}  Ne2+ {[%clk 0:01:49]} 22. Nxe2 {[%clk 0:01:32]}  Bxe2 {[%clk 0:01:50]} 23. Re1 {[%clk 0:01:25]}  Bxc4 {[%clk 0:01:49]} 24. Bxc5 {[%clk 0:01:19]}  dxc5 {[%clk 0:01:50]} 25. Bxe4 {[%clk 0:01:19]}  Bxb2 {[%clk 0:01:22]} 26. Rab1 {[%clk 0:01:19]}  Bc3 {[%clk 0:01:16]} 27. Rec1 {[%clk 0:01:19]}  Bxa2 {[%clk 0:01:14]} 28. Rxb7 {[%clk 0:01:18]}  Rxe4 {[%clk 0:01:14]} 29. Rb8+ {[%clk 0:01:13]}  Ke7 {[%clk 0:01:12]} 30. Rb7 {[%clk 0:00:50]}  Be5 {[%clk 0:01:03]} 31. Nf5+ {[%clk 0:00:44]}  Ke6 {[%clk 0:01:01]} 32. Ne3 {[%clk 0:00:43]}  a5 {[%clk 0:00:52]} 33. Rxc5 {[%clk 0:00:40]}  a4 {[%clk 0:00:49]} 34. Ra5 {[%clk 0:00:39]}  Bb3 {[%clk 0:00:48]} 35. Ra6+ {[%clk 0:00:37]}  Bd6 {[%clk 0:00:48]} 36. Rxc7 {[%clk 0:00:36]}  a3 {[%clk 0:00:40]} 37. Rcc6 {[%clk 0:00:35]}  Rd8 {[%clk 0:00:28]} 38. Rxa3 {[%clk 0:00:35]}  Ba4 {[%clk 0:00:27]} 39. Ra6 {[%clk 0:00:29]}  Bb5 {[%clk 0:00:27]} 40. Rb6 {[%clk 0:00:28]}  Ra4 {[%clk 0:00:22]} 41. Rc3 {[%clk 0:00:20]}  Be8 {[%clk 0:00:22]} 42. Rd3 {[%clk 0:00:19]}  Bg6 {[%clk 0:00:20]} 43. Rd1 {[%clk 0:00:18]}  Ke7 {[%clk 0:00:20]} 44. Nd5+ {[%clk 0:00:18]}  Kf7 {[%clk 0:00:20]} 45. Nf4 {[%clk 0:00:17]}  Bc7 {[%clk 0:00:17]} 46. Rxd8 {[%clk 0:00:17]}  Bxb6 {[%clk 0:00:16]} 47. Rd7+ {[%clk 0:00:17]}  Ke8 {[%clk 0:00:17]} 48. Rd6 {[%clk 0:00:13]}  Bc7 {[%clk 0:00:16]} 49. Re6+ {[%clk 0:00:12]}  Kd7 {[%clk 0:00:16]} 50. Rf6 {[%clk 0:00:12]}  Bxf4 {[%clk 0:00:15]} 51. gxf4 {[%clk 0:00:13]}  Ke7 {[%clk 0:00:16]} 52. Rb6 {[%clk 0:00:12]}  Rxf4 {[%clk 0:00:16]} 53. Kg2 {[%clk 0:00:13]}  Kf7 {[%clk 0:00:16]} 54. Kg3 {[%clk 0:00:14]}  Rf6 {[%clk 0:00:17]} 55. Rb7+ {[%clk 0:00:14]}  Kg8 {[%clk 0:00:17]} 56. f4 {[%clk 0:00:15]}  Rf7 {[%clk 0:00:18]} 57. Rb8+ {[%clk 0:00:15]}  Kg7 {[%clk 0:00:18]} 58. Rb6 {[%clk 0:00:16]}  Rc7 {[%clk 0:00:18]} 59. Kg4 {[%clk 0:00:16]}  Rc1 {[%clk 0:00:18]} 60. h3 {[%clk 0:00:16]}  Rg1+ {[%clk 0:00:18]} 61. Kf3 {[%clk 0:00:16]}  Kh6 {[%clk 0:00:18]} 62. Rb5 {[%clk 0:00:16]}  Rc1 {[%clk 0:00:16]} 63. Kg3 {[%clk 0:00:16]}  Rc3+ {[%clk 0:00:16]} 64. Kh4 {[%clk 0:00:16]}  Rf3 {[%clk 0:00:15]} 65. Kg4 {[%clk 0:00:15]}  Rf1 {[%clk 0:00:16]} 66. f5 {[%clk 0:00:14]}  Bh5+ {[%clk 0:00:16]} 67. Kh4 {[%clk 0:00:13]}  Rf4+ {[%clk 0:00:16]} 68. Kg3 {[%clk 0:00:14]}  Rf3+ {[%clk 0:00:17]} 69. Kh4 {[%clk 0:00:13]}  Rf4+ {[%clk 0:00:17]} 70. Kg3 {[%clk 0:00:14]}  Ra4 {[%clk 0:00:18]} 71. Rc5 {[%clk 0:00:12]}  Kg5 {[%clk 0:00:18]} 72. h4+ {[%clk 0:00:11]}  Kf6 {[%clk 0:00:16]} 73. Kh3 {[%clk 0:00:10]}  Bg4+ {[%clk 0:00:16]} 74. Kg3 {[%clk 0:00:11]}  Bxf5 {[%clk 0:00:16]} 75. Rc6+ {[%clk 0:00:11]}  Be6 {[%clk 0:00:17]} 76. Rc5 {[%clk 0:00:12]}  Rg4+ {[%clk 0:00:17]} 77. Kf3 {[%clk 0:00:10]}  Rxh4 {[%clk 0:00:17]} 78. Ra5 {[%clk 0:00:10]}  h5 {[%clk 0:00:16]} 79. Kg3 {[%clk 0:00:11]}  Rg4+ {[%clk 0:00:17]} 80. Kh2 {[%clk 0:00:11]}  Rg5 {[%clk 0:00:17]} 81. Ra3 {[%clk 0:00:10]}  Kg6 {[%clk 0:00:18]} 82. Rf3 {[%clk 0:00:11]}  h4 {[%clk 0:00:18]} 83. Rf8 {[%clk 0:00:11]}  Kh5 {[%clk 0:00:18]} 84. Rf4 {[%clk 0:00:10]}  Re5 {[%clk 0:00:17]} 85. Ra4 {[%clk 0:00:10]}  Re2+ {[%clk 0:00:17]} 86. Kg1 {[%clk 0:00:10]}  h3 {[%clk 0:00:16]} 87. Kh1 {[%clk 0:00:10]}  Bd5+ {[%clk 0:00:16]} 88. Kg1 {[%clk 0:00:10]}  h2+ {[%clk 0:00:17]} 89. Kf1 {[%clk 0:00:10]}  h1=Q+ {[%clk 0:00:17]} 90. Kxe2 {[%clk 0:00:11]}  Qf3+ {[%clk 0:00:18]} 91. Kd2 {[%clk 0:00:11]}  Qf2+ {[%clk 0:00:18]} 92. Kc3 {[%clk 0:00:11]}  Qe1+ {[%clk 0:00:19]} 93. Kb2 {[%clk 0:00:10]}  Qd2+ {[%clk 0:00:19]} 94. Ka3 {[%clk 0:00:11]}  Qc3# {[%clk 0:00:19]} 0-1


[Site "https://www.chess.com"]

[Event "Late Titled Tuesday Blitz February 8 2022"]
[White "Lin, Dachey"]
[Black "Tari, Aryan"]
[WhiteFideId "2029650"]
[BlackFideId "1510045"]
[WhiteElo "2737"]
[BlackElo "2567"]
[Result "1-0"]
[Round "03"]
[TimeControl "180+1"]
[Date "2022.02.08"]
[WhiteClock "0:00:17"]
[BlackClock "0:00:08"]

1. Nc3 {[%clk 0:02:50]}  c5 {[%clk 0:02:51]} 2. e4 {[%clk 0:02:50]}  Nc6 {[%clk 0:02:49]} 3. f4 {[%clk 0:02:51]}  g6 {[%clk 0:02:48]} 4. Nf3 {[%clk 0:02:52]}  Bg7 {[%clk 0:02:48]} 5. Bc4 {[%clk 0:02:53]}  a6 {[%clk 0:02:36]} 6. f5 {[%clk 0:02:37]}  b5 {[%clk 0:02:32]} 7. Bd5 {[%clk 0:02:38]}  Nf6 {[%clk 0:02:17]} 8. d3 {[%clk 0:01:56]}  Nxd5 {[%clk 0:01:58]} 9. exd5 {[%clk 0:01:54]}  Nd4 {[%clk 0:01:56]} 10. fxg6 {[%clk 0:01:54]}  hxg6 {[%clk 0:01:49]} 11. O-O {[%clk 0:01:54]}  O-O {[%clk 0:01:43]} 12. Ne4 {[%clk 0:01:41]}  d6 {[%clk 0:01:41]} 13. c3 {[%clk 0:01:33]}  Nf5 {[%clk 0:01:28]} 14. Nfg5 {[%clk 0:01:30]}  Bb7 {[%clk 0:01:23]} 15. Rxf5 {[%clk 0:01:25]}  Qd7 {[%clk 0:01:01]} 16. Rf1 {[%clk 0:01:16]}  Bxd5 {[%clk 0:01:01]} 17. Qe2 {[%clk 0:01:13]}  f5 {[%clk 0:00:55]} 18. Nf2 {[%clk 0:00:58]}  e5 {[%clk 0:00:55]} 19. Bd2 {[%clk 0:00:57]}  c4 {[%clk 0:00:54]} 20. Rae1 {[%clk 0:00:55]}  Rae8 {[%clk 0:00:52]} 21. b3 {[%clk 0:00:52]}  cxb3 {[%clk 0:00:49]} 22. axb3 {[%clk 0:00:52]}  Bxb3 {[%clk 0:00:50]} 23. c4 {[%clk 0:00:52]}  bxc4 {[%clk 0:00:49]} 24. dxc4 {[%clk 0:00:53]}  Qc6 {[%clk 0:00:48]} 25. Qd3 {[%clk 0:00:53]}  Bxc4 {[%clk 0:00:38]} 26. Qh3 {[%clk 0:00:54]}  Rf6 {[%clk 0:00:39]} 27. Rc1 {[%clk 0:00:51]}  Qd5 {[%clk 0:00:39]} 28. Rfd1 {[%clk 0:00:49]}  Bb3 {[%clk 0:00:39]} 29. Re1 {[%clk 0:00:38]}  Qxd2 {[%clk 0:00:35]} 30. Qxb3+ {[%clk 0:00:38]}  d5 {[%clk 0:00:34]} 31. Red1 {[%clk 0:00:38]}  Qxg5 {[%clk 0:00:33]} 32. Qxd5+ {[%clk 0:00:38]}  Kh7 {[%clk 0:00:30]} 33. Rc7 {[%clk 0:00:37]}  Rff8 {[%clk 0:00:29]} 34. Qb7 {[%clk 0:00:33]}  Qf6 {[%clk 0:00:26]} 35. Rdd7 {[%clk 0:00:17]}  Rg8 {[%clk 0:00:26]} 36. Rf7 {[%clk 0:00:17]}  Qd6 {[%clk 0:00:05]} 37. Rxg7+ {[%clk 0:00:17]}  Rxg7 {[%clk 0:00:06]} 38. Rxg7+ {[%clk 0:00:17]}  Kh6 {[%clk 0:00:07]} 39. Rh7+ {[%clk 0:00:17]}  Kg5 {[%clk 0:00:08]} 40. h4+ {[%clk 0:00:17]}  Kf4 {[%clk 0:00:08]} 41. Qf3# {[%clk 0:00:17]} 1-0


[Site "https://www.chess.com"]

[Event "Late Titled Tuesday Blitz February 8 2022"]
[White "Michelakos, Panagiotis"]
[Black "Kamsky, Gata"]
[WhiteFideId "4216067"]
[BlackFideId "2000024"]
[WhiteElo "2140"]
[BlackElo "2645"]
[Result "0-1"]
[Round "03"]
[TimeControl "180+1"]
[Date "2022.02.08"]
[WhiteClock "0:00:02"]
[BlackClock "0:00:07"]

1. d4 {[%clk 0:03:00]}  f5 {[%clk 0:02:53]} 2. Nc3 {[%clk 0:03:00]}  Nf6 {[%clk 0:02:52]} 3. Bg5 {[%clk 0:03:01]}  d5 {[%clk 0:02:51]} 4. Bxf6 {[%clk 0:03:00]}  exf6 {[%clk 0:02:51]} 5. e3 {[%clk 0:03:00]}  Be6 {[%clk 0:02:49]} 6. Qf3 {[%clk 0:02:58]}  Qd7 {[%clk 0:02:46]} 7. h4 {[%clk 0:02:50]}  h5 {[%clk 0:02:40]} 8. Bd3 {[%clk 0:02:45]}  Nc6 {[%clk 0:02:29]} 9. a3 {[%clk 0:02:42]}  g6 {[%clk 0:02:25]} 10. Nge2 {[%clk 0:02:39]}  Bf7 {[%clk 0:02:22]} 11. b4 {[%clk 0:02:30]}  Ne7 {[%clk 0:02:18]} 12. Nf4 {[%clk 0:02:11]}  Bh6 {[%clk 0:02:02]} 13. b5 {[%clk 0:02:01]}  Kf8 {[%clk 0:01:55]} 14. a4 {[%clk 0:01:56]}  Kg7 {[%clk 0:01:50]} 15. Nce2 {[%clk 0:01:51]}  Nc8 {[%clk 0:01:30]} 16. Qg3 {[%clk 0:01:38]}  Kh7 {[%clk 0:01:18]} 17. c4 {[%clk 0:01:00]}  dxc4 {[%clk 0:00:42]} 18. Bxc4 {[%clk 0:00:59]}  Nd6 {[%clk 0:00:42]} 19. Bxf7 {[%clk 0:00:58]}  Qxf7 {[%clk 0:00:41]} 20. Rc1 {[%clk 0:00:56]}  Rhc8 {[%clk 0:00:39]} 21. O-O {[%clk 0:00:55]}  a6 {[%clk 0:00:39]} 22. b6 {[%clk 0:00:45]}  Ne4 {[%clk 0:00:38]} 23. Qh3 {[%clk 0:00:31]}  cxb6 {[%clk 0:00:36]} 24. Nxh5 {[%clk 0:00:25]}  b5 {[%clk 0:00:27]} 25. Rxc8 {[%clk 0:00:14]}  Rxc8 {[%clk 0:00:27]} 26. Nhg3 {[%clk 0:00:15]}  Nxg3 {[%clk 0:00:24]} 27. Nxg3 {[%clk 0:00:14]}  bxa4 {[%clk 0:00:21]} 28. h5 {[%clk 0:00:14]}  Rg8 {[%clk 0:00:16]} 29. hxg6+ {[%clk 0:00:14]}  Rxg6 {[%clk 0:00:16]} 30. Qxf5 {[%clk 0:00:14]}  b5 {[%clk 0:00:14]} 31. Ne4 {[%clk 0:00:10]}  b4 {[%clk 0:00:11]} 32. d5 {[%clk 0:00:10]}  b3 {[%clk 0:00:10]} 33. d6 {[%clk 0:00:06]}  Kh8 {[%clk 0:00:07]} 34. d7 {[%clk 0:00:06]}  Rg8 {[%clk 0:00:07]} 35. Rd1 {[%clk 0:00:03]}  Rd8 {[%clk 0:00:06]} 36. Nxf6 {[%clk 0:00:02]}  b2 {[%clk 0:00:06]} 37. Qh5 {[%clk 0:00:01]}  Qxh5 {[%clk 0:00:06]} 38. Nxh5 {[%clk 0:00:02]}  a3 {[%clk 0:00:06]} 39. e4 {[%clk 0:00:02]}  a2 {[%clk 0:00:07]} 40. f4 {[%clk 0:00:02]}  b1=Q {[%clk 0:00:07]} 0-1


[Site "https://www.chess.com"]

[Event "Late Titled Tuesday Blitz February 8 2022"]
[White "Milosevic, Milos"]
[Black "Myers, Dominique"]
[WhiteFideId "964875"]
[BlackFideId "2041715"]
[WhiteElo "2198"]
[BlackElo "1986"]
[Result "1-0"]
[Round "03"]
[TimeControl "180+1"]
[Date "2022.02.09"]
[WhiteClock "0:01:19"]
[BlackClock "0:00:50"]

1. b4 {[%clk 0:03:00]}  e5 {[%clk 0:02:55]} 2. Bb2 {[%clk 0:03:00]}  d6 {[%clk 0:02:55]} 3. c4 {[%clk 0:02:59]}  f5 {[%clk 0:02:56]} 4. a3 {[%clk 0:02:59]}  Nf6 {[%clk 0:02:56]} 5. e3 {[%clk 0:02:59]}  Be7 {[%clk 0:02:57]} 6. Nc3 {[%clk 0:03:00]}  O-O {[%clk 0:02:57]} 7. Qc2 {[%clk 0:03:00]}  Be6 {[%clk 0:02:58]} 8. Nf3 {[%clk 0:03:00]}  c6 {[%clk 0:02:58]} 9. Ng5 {[%clk 0:03:00]}  Bc8 {[%clk 0:02:58]} 10. Bd3 {[%clk 0:03:00]}  h6 {[%clk 0:02:58]} 11. Nh3 {[%clk 0:02:58]}  e4 {[%clk 0:02:58]} 12. Be2 {[%clk 0:02:59]}  g5 {[%clk 0:02:57]} 13. f4 {[%clk 0:02:59]}  g4 {[%clk 0:02:56]} 14. Nf2 {[%clk 0:02:59]}  Be6 {[%clk 0:02:56]} 15. g3 {[%clk 0:02:59]}  Nbd7 {[%clk 0:02:52]} 16. h3 {[%clk 0:02:59]}  h5 {[%clk 0:02:50]} 17. hxg4 {[%clk 0:02:57]}  hxg4 {[%clk 0:02:51]} 18. O-O-O {[%clk 0:02:55]}  Nb6 {[%clk 0:02:46]} 19. Na4 {[%clk 0:02:49]}  Qe8 {[%clk 0:02:38]} 20. Rh6 {[%clk 0:02:43]}  Qf7 {[%clk 0:02:35]} 21. Rdh1 {[%clk 0:02:43]}  Qg7 {[%clk 0:02:25]} 22. Nxb6 {[%clk 0:02:33]}  axb6 {[%clk 0:02:23]} 23. d3 {[%clk 0:02:34]}  d5 {[%clk 0:02:23]} 24. dxe4 {[%clk 0:02:33]}  dxe4 {[%clk 0:02:22]} 25. Qc3 {[%clk 0:02:32]}  Rf7 {[%clk 0:02:16]} 26. Qc2 {[%clk 0:02:27]}  Rd8 {[%clk 0:02:11]} 27. R1h5 {[%clk 0:02:24]}  Kf8 {[%clk 0:01:59]} 28. Rh8+ {[%clk 0:02:23]}  Qxh8 {[%clk 0:01:48]} 29. Rxh8+ {[%clk 0:02:23]}  Kg7 {[%clk 0:01:48]} 30. Rxd8 {[%clk 0:02:19]}  Bxd8 {[%clk 0:01:49]} 31. Qd2 {[%clk 0:02:10]}  Rd7 {[%clk 0:01:48]} 32. Qc3 {[%clk 0:02:10]}  Kg6 {[%clk 0:01:48]} 33. Qe5 {[%clk 0:02:08]}  Kf7 {[%clk 0:01:42]} 34. Qb8 {[%clk 0:02:03]}  Bc7 {[%clk 0:01:38]} 35. Qh8 {[%clk 0:02:02]}  Bd8 {[%clk 0:01:37]} 36. Nd1 {[%clk 0:01:50]}  Be7 {[%clk 0:01:36]} 37. Nc3 {[%clk 0:01:49]}  Rd8 {[%clk 0:01:37]} 38. Qh1 {[%clk 0:01:47]}  Kg6 {[%clk 0:01:36]} 39. Na4 {[%clk 0:01:44]}  b5 {[%clk 0:01:33]} 40. cxb5 {[%clk 0:01:42]}  cxb5 {[%clk 0:01:34]} 41. Bxb5 {[%clk 0:01:42]}  Nd5 {[%clk 0:01:31]} 42. Bd4 {[%clk 0:01:34]}  Rc8+ {[%clk 0:01:20]} 43. Kb2 {[%clk 0:01:30]}  Nf6 {[%clk 0:01:14]} 44. Nc5 {[%clk 0:01:28]}  Bf7 {[%clk 0:01:11]} 45. Nd7 {[%clk 0:01:27]}  Nxd7 {[%clk 0:01:01]} 46. Bxd7 {[%clk 0:01:28]}  Rc7 {[%clk 0:01:01]} 47. Qh8 {[%clk 0:01:18]}  Rxd7 {[%clk 0:00:56]} 48. Qg7+ {[%clk 0:01:17]}  Kh5 {[%clk 0:00:56]} 49. Qxf7+ {[%clk 0:01:18]}  Kh6 {[%clk 0:00:50]} 50. Qg7+ {[%clk 0:01:18]}  Kh5 {[%clk 0:00:50]} 51. Qh7# {[%clk 0:01:19]} 1-0


[Site "https://www.chess.com"]